[Event "*** SCC Grand Prix: Titled Tuesday Blitz"]
[Site "Chess.com"]
[Date "2020.07.14"]
[Round "1"]
[White "enzovsky"]
[Black "Chuchofrio1"]
[Result "1-0"]
[WhiteElo "2518"]
[BlackElo "2181"]
[TimeControl "180+1"]
[EndTime "10:08:49 PDT"]
[Termination "enzovsky won on time"]

1. e4 {[%clk 0:03:00.9]} 1... c5 {[%clk 0:02:59.9]} 2. Nf3 {[%clk 0:02:59.8]}
2... e6 {[%clk 0:03:00.3]} 3. d4 {[%clk 0:03:00.7]} 3... cxd4 {[%clk 0:03:00.6]}
4. Nxd4 {[%clk 0:03:00.7]} 4... Nf6 {[%clk 0:03:01.1]} 5. Nc3 {[%clk 0:03:00.5]}
5... Nc6 {[%clk 0:03:01.6]} 6. Ndb5 {[%clk 0:02:57.6]} 6... Bc5 {[%clk
0:03:00.7]} 7. Bf4 {[%clk 0:02:44.8]} 7... O-O {[%clk 0:02:57.4]} 8. Bd6 {[%clk
0:02:24.8]} 8... Qb6 {[%clk 0:02:56.3]} 9. Bxc5 {[%clk 0:02:19.4]} 9... Qxc5
{[%clk 0:02:56]} 10. Qd6 {[%clk 0:02:15.6]} 10... Qb6 {[%clk 0:02:46.1]} 11. Bd3
{[%clk 0:02:14.7]} 11... a6 {[%clk 0:02:36.8]} 12. Nc7 {[%clk 0:02:12]} 12...
Ra7 {[%clk 0:02:23.2]} 13. O-O {[%clk 0:02:09.9]} 13... Qxb2 {[%clk 0:02:17.2]}
14. Na4 {[%clk 0:02:08.1]} 14... Qe5 {[%clk 0:02:12.7]} 15. Qxe5 {[%clk
0:02:03.4]} 15... Nxe5 {[%clk 0:02:12]} 16. Nb6 {[%clk 0:02:04.3]} 16... d6
{[%clk 0:01:44.3]} 17. f4 {[%clk 0:01:57.2]} 17... Ned7 {[%clk 0:01:44]} 18.
Nca8 {[%clk 0:01:51.8]} 18... Nxb6 {[%clk 0:01:01.3]} 19. Nxb6 {[%clk
0:01:52.7]} 19... Nd7 {[%clk 0:00:59.8]} 20. Nc4 {[%clk 0:01:46.7]} 20... d5
{[%clk 0:00:54.7]} 21. exd5 {[%clk 0:01:47.6]} 21... exd5 {[%clk 0:00:54.8]} 22.
Ne3 {[%clk 0:01:48.5]} 22... Nf6 {[%clk 0:00:50.6]} 23. Rfd1 {[%clk 0:01:42.7]}
23... b5 {[%clk 0:00:47.5]} 24. a4 {[%clk 0:01:39.9]} 24... d4 {[%clk
0:00:38.1]} 25. Nf5 {[%clk 0:01:38]} 25... Bxf5 {[%clk 0:00:36]} 26. Bxf5 {[%clk
0:01:38.9]} 26... bxa4 {[%clk 0:00:33.9]} 27. Rxd4 {[%clk 0:01:39.2]} 27... g6
{[%clk 0:00:29.3]} 28. Bd3 {[%clk 0:01:35.3]} 28... Re8 {[%clk 0:00:28]} 29.
Rdxa4 {[%clk 0:01:30]} 29... Nd5 {[%clk 0:00:22.8]} 30. g3 {[%clk 0:01:28.1]}
30... Rae7 {[%clk 0:00:20]} 31. Rxa6 {[%clk 0:01:24]} 31... Nb4 {[%clk
0:00:19.5]} 32. Ra7 {[%clk 0:01:22.1]} 32... Nxd3 {[%clk 0:00:17.2]} 33. cxd3
{[%clk 0:01:23]} 33... Re2 {[%clk 0:00:17]} 34. R1a2 {[%clk 0:01:19.9]} 34...
R2e3 {[%clk 0:00:13.9]} 35. Rd2 {[%clk 0:01:18]} 35... Rd8 {[%clk 0:00:13.2]}
36. d4 {[%clk 0:01:16.3]} 36... Rd5 {[%clk 0:00:11.4]} 37. Kf2 {[%clk
0:01:12.2]} 37... Rb3 {[%clk 0:00:09.7]} 38. Raa2 {[%clk 0:01:08.3]} 38... Rb4
{[%clk 0:00:09.5]} 39. Ke3 {[%clk 0:01:06.8]} 39... Kg7 {[%clk 0:00:09.6]} 40.
Ke4 {[%clk 0:01:01.1]} 40... Rd8 {[%clk 0:00:09.2]} 41. g4 {[%clk 0:00:58.8]}
41... Rb1 {[%clk 0:00:08.8]} 42. Re2 {[%clk 0:00:55.7]} 42... Rb4 {[%clk
0:00:08.2]} 43. Rad2 {[%clk 0:00:53.5]} 43... Re8+ {[%clk 0:00:08.3]} 44. Kd3
{[%clk 0:00:49.5]} 44... Rd8 {[%clk 0:00:07.7]} 45. Kc3 {[%clk 0:00:50]} 45...
Ra4 {[%clk 0:00:07.7]} 46. g5 {[%clk 0:00:50.1]} 46... Ra3+ {[%clk 0:00:07.9]}
47. Kc4 {[%clk 0:00:48.3]} 47... Rf3 {[%clk 0:00:07.9]} 48. d5 {[%clk
0:00:46.3]} 48... Rxf4+ {[%clk 0:00:07.9]} 49. Rd4 {[%clk 0:00:46.1]} 49... Rf5
{[%clk 0:00:08.1]} 50. h4 {[%clk 0:00:43.7]} 50... h6 {[%clk 0:00:07.4]} 51.
gxh6+ {[%clk 0:00:41.9]} 51... Kxh6 {[%clk 0:00:07.7]} 52. Kc5 {[%clk
0:00:42.2]} 52... Kh5 {[%clk 0:00:07]} 53. Kc6 {[%clk 0:00:40.1]} 53... Rf1
{[%clk 0:00:06.9]} 54. Kc7 {[%clk 0:00:40.2]} 54... Ra8 {[%clk 0:00:06.9]} 55.
Rc2 {[%clk 0:00:40]} 55... Re1 {[%clk 0:00:04.7]} 56. d6 {[%clk 0:00:37.3]}
56... Ree8 {[%clk 0:00:04.4]} 57. Rc5+ {[%clk 0:00:35]} 57... Kh6 {[%clk
0:00:02.4]} 58. d7 {[%clk 0:00:35.5]} 58... Red8 {[%clk 0:00:02.4]} 59. Re5
{[%clk 0:00:33.5]} 59... Kg7 {[%clk 0:00:01.9]} 60. Rc5 {[%clk 0:00:31.1]} 60...
Rh8 {[%clk 0:00:01.5]} 61. Kd6 {[%clk 0:00:29.6]} 61... Kf6 {[%clk 0:00:01.8]}
62. Rf4+ {[%clk 0:00:27.4]} 62... Kg7 {[%clk 0:00:02]} 63. Rfc4 {[%clk
0:00:27.9]} 63... Ra6+ {[%clk 0:00:02.1]} 64. Rc6 {[%clk 0:00:26.5]} 64... Raa8
{[%clk 0:00:01.3]} 65. Rc8 {[%clk 0:00:24.3]} 65... Ra6+ {[%clk 0:00:01.4]} 66.
R4c6 {[%clk 0:00:24]} 66... Rxc6+ {[%clk 0:00:01.5]} 67. Kxc6 {[%clk 0:00:24.4]}
1-0

[Event "*** SCC Grand Prix: Titled Tuesday Blitz"]
[Site "Chess.com"]
[Date "2020.07.14"]
[Round "1"]
[White "Ceejay271"]
[Black "Paladin61"]
[Result "0-1"]
[WhiteElo "2337"]
[BlackElo "2654"]
[TimeControl "180+1"]
[EndTime "10:08:57 PDT"]
[Termination "Paladin61 won on time"]

1. d4 {[%clk 0:03:00.9]} 1... Nf6 {[%clk 0:02:59.7]} 2. c4 {[%clk 0:03:00.3]}
2... g6 {[%clk 0:02:59.9]} 3. Nc3 {[%clk 0:03:00.2]} 3... Bg7 {[%clk 0:03:00.2]}
4. e4 {[%clk 0:03:00.2]} 4... d6 {[%clk 0:03:00.3]} 5. Nf3 {[%clk 0:02:59.7]}
5... O-O {[%clk 0:03:00.2]} 6. Be2 {[%clk 0:02:59.2]} 6... e5 {[%clk 0:03:00]}
7. d5 {[%clk 0:02:59.2]} 7... a5 {[%clk 0:02:59.5]} 8. Bg5 {[%clk 0:02:58.6]}
8... h6 {[%clk 0:02:56.1]} 9. Be3 {[%clk 0:02:58.3]} 9... Ng4 {[%clk 0:02:54]}
10. Bd2 {[%clk 0:02:58.1]} 10... f5 {[%clk 0:02:53.8]} 11. h3 {[%clk 0:02:58]}
11... Nf6 {[%clk 0:02:53.4]} 12. exf5 {[%clk 0:02:57.1]} 12... gxf5 {[%clk
0:02:53.6]} 13. Qc1 {[%clk 0:02:57.8]} 13... f4 {[%clk 0:02:52.2]} 14. g3 {[%clk
0:02:57.1]} 14... e4 {[%clk 0:02:50.9]} 15. Nh4 {[%clk 0:02:56.8]} 15... e3
{[%clk 0:02:49]} 16. fxe3 {[%clk 0:02:56.8]} 16... fxg3 {[%clk 0:02:48.6]} 17.
Ng6 {[%clk 0:02:55.6]} 17... Re8 {[%clk 0:02:32.2]} 18. Nf4 {[%clk 0:02:52.6]}
18... Na6 {[%clk 0:02:08.4]} 19. Rg1 {[%clk 0:02:50.4]} 19... Nc5 {[%clk
0:02:02.7]} 20. Bf3 {[%clk 0:02:18.6]} 20... Bf5 {[%clk 0:01:33.9]} 21. Rxg3
{[%clk 0:02:17.7]} 21... Kh7 {[%clk 0:01:21.7]} 22. Kf2 {[%clk 0:02:11.2]} 22...
Rg8 {[%clk 0:01:19.7]} 23. Qg1 {[%clk 0:02:02.8]} 23... Qe7 {[%clk 0:01:11.6]}
24. Qg2 {[%clk 0:02:01.6]} 24... Bh8 {[%clk 0:01:10.6]} 25. Rg1 {[%clk
0:01:59.3]} 25... Qf7 {[%clk 0:01:05.6]} 26. e4 {[%clk 0:01:50.8]} 26... Rxg3
{[%clk 0:00:55.5]} 27. Qxg3 {[%clk 0:01:47.1]} 27... Nfxe4+ {[%clk 0:00:53.1]}
28. Nxe4 {[%clk 0:01:46]} 28... Nxe4+ {[%clk 0:00:35.3]} 29. Bxe4 {[%clk
0:01:45.3]} 29... Bxe4 {[%clk 0:00:35.8]} 30. b3 {[%clk 0:01:09]} 30... Rf8
{[%clk 0:00:32.6]} 31. Ke1 {[%clk 0:01:05.5]} 31... Be5 {[%clk 0:00:29.5]} 32.
Rf1 {[%clk 0:01:03.3]} 32... Qf5 {[%clk 0:00:25.8]} 33. Qg1 {[%clk 0:00:47.6]}
33... Rg8 {[%clk 0:00:23.2]} 34. Qe3 {[%clk 0:00:43.4]} 34... Bc2 {[%clk
0:00:20.3]} 35. Ne6 {[%clk 0:00:38.4]} 35... Bg3+ {[%clk 0:00:15.1]} 36. Ke2
{[%clk 0:00:36.6]} 36... Qh5+ {[%clk 0:00:12.3]} 37. Qf3 {[%clk 0:00:36.6]}
37... Bg6 {[%clk 0:00:06.4]} 38. Qxh5 {[%clk 0:00:28.6]} 38... Bxh5+ {[%clk
0:00:06.3]} 39. Kd3 {[%clk 0:00:28.9]} 39... Be5 {[%clk 0:00:05.9]} 40. Nxc7
{[%clk 0:00:21.7]} 40... Rg3+ {[%clk 0:00:05.6]} 41. Kc2 {[%clk 0:00:21]} 41...
Bg6+ {[%clk 0:00:05.6]} 42. Kc1 {[%clk 0:00:20.9]} 42... a4 {[%clk 0:00:06.2]}
43. Ne6 {[%clk 0:00:18.3]} 43... Bd3 {[%clk 0:00:03.9]} 44. Rf7+ {[%clk
0:00:16.7]} 44... Kg6 {[%clk 0:00:04.2]} 45. Rxb7 {[%clk 0:00:08.1]} 45... Rg1+
{[%clk 0:00:04.2]} 46. Be1 {[%clk 0:00:08.5]} 46... Be4 {[%clk 0:00:03.7]} 47.
Kd2 {[%clk 0:00:08.5]} 47... Rg2+ {[%clk 0:00:03.7]} 48. Ke3 {[%clk 0:00:08.5]}
48... Bf5 {[%clk 0:00:03.5]} 49. Nf8+ {[%clk 0:00:08.8]} 49... Kh5 {[%clk
0:00:02.2]} 50. Ne6 {[%clk 0:00:05.8]} 50... Rxa2 {[%clk 0:00:02.4]} 51. bxa4
{[%clk 0:00:05.4]} 51... Ra3+ {[%clk 0:00:02.2]} 52. Kf2 {[%clk 0:00:04.7]}
52... Rxa4 {[%clk 0:00:03]} 53. Bd2 {[%clk 0:00:04.5]} 53... Ra2 {[%clk
0:00:02.7]} 54. Ke1 {[%clk 0:00:04.6]} 54... Ra1+ {[%clk 0:00:02.6]} 55. Ke2
{[%clk 0:00:04.9]} 55... Ra2 {[%clk 0:00:02.9]} 56. Ke1 {[%clk 0:00:04.7]} 56...
Bxh3 {[%clk 0:00:03.1]} 57. Ng7+ {[%clk 0:00:03.6]} 57... Kg4 {[%clk 0:00:03]}
58. Rf7 {[%clk 0:00:01.6]} 58... Bg3+ {[%clk 0:00:02.7]} 59. Ke2 {[%clk
0:00:01.6]} 59... Bg2 {[%clk 0:00:02.5]} 60. Nf5 {[%clk 0:00:01.1]} 60... Be5
{[%clk 0:00:02.2]} 0-1

[Event "*** SCC Grand Prix: Titled Tuesday Blitz"]
[Site "Chess.com"]
[Date "2020.07.14"]
[Round "1"]
[White "bazar-wokzal"]
[Black "Sankalp_Gupta2003"]
[Result "1-0"]
[WhiteElo "2418"]
[BlackElo "2779"]
[TimeControl "180+1"]
[EndTime "10:08:59 PDT"]
[Termination "bazar-wokzal won by checkmate"]

1. e4 {[%clk 0:02:54]} 1... e6 {[%clk 0:03:00.3]} 2. d4 {[%clk 0:02:54]} 2... d5
{[%clk 0:03:00.9]} 3. exd5 {[%clk 0:02:53.8]} 3... exd5 {[%clk 0:03:01.8]} 4.
Nf3 {[%clk 0:02:54.2]} 4... Nc6 {[%clk 0:03:02.3]} 5. Bd3 {[%clk 0:02:53.7]}
5... Bd6 {[%clk 0:03:02.9]} 6. O-O {[%clk 0:02:53.6]} 6... Nge7 {[%clk
0:03:03.5]} 7. Re1 {[%clk 0:02:53.4]} 7... Bg4 {[%clk 0:03:04]} 8. c3 {[%clk
0:02:53.3]} 8... Qd7 {[%clk 0:03:04.1]} 9. Nbd2 {[%clk 0:02:51.8]} 9... O-O-O
{[%clk 0:03:04.1]} 10. b4 {[%clk 0:02:50.4]} 10... Rde8 {[%clk 0:03:04.5]} 11.
Nb3 {[%clk 0:02:47.6]} 11... f6 {[%clk 0:02:58.5]} 12. b5 {[%clk 0:02:39.2]}
12... Nd8 {[%clk 0:02:55.2]} 13. Nc5 {[%clk 0:02:36.5]} 13... Bxc5 {[%clk
0:02:55]} 14. dxc5 {[%clk 0:02:36.5]} 14... Ng6 {[%clk 0:02:50.7]} 15. Bd2
{[%clk 0:02:23.2]} 15... Ne5 {[%clk 0:02:46]} 16. Nxe5 {[%clk 0:01:57.4]} 16...
fxe5 {[%clk 0:02:39.3]} 17. c6 {[%clk 0:01:45.1]} 17... Qe6 {[%clk 0:02:22]} 18.
Qa4 {[%clk 0:01:35.8]} 18... Kb8 {[%clk 0:02:19.9]} 19. cxb7 {[%clk 0:01:08.3]}
19... Bf5 {[%clk 0:01:33.5]} 20. Be3 {[%clk 0:01:01.1]} 20... Kxb7 {[%clk
0:01:23]} 21. Qa6+ {[%clk 0:00:53.6]} 21... Qxa6 {[%clk 0:01:17.8]} 22. bxa6+
{[%clk 0:00:53.2]} 22... Kc6 {[%clk 0:01:13.8]} 23. Bxf5 {[%clk 0:00:52.9]}
23... Nf7 {[%clk 0:01:14.4]} 24. Rab1 {[%clk 0:00:46.5]} 24... Nd6 {[%clk
0:01:13]} 25. Bc2 {[%clk 0:00:45.5]} 25... Kd7 {[%clk 0:01:04.4]} 26. Bc5 {[%clk
0:00:39]} 26... e4 {[%clk 0:01:00.4]} 27. Ba4+ {[%clk 0:00:31.1]} 27... c6
{[%clk 0:00:57.3]} 28. Bxd6 {[%clk 0:00:26]} 28... Kxd6 {[%clk 0:00:58.2]} 29.
Rb7 {[%clk 0:00:26.2]} 29... Re7 {[%clk 0:00:55.8]} 30. Reb1 {[%clk 0:00:25.4]}
30... Rhe8 {[%clk 0:00:50.4]} 31. Kf1 {[%clk 0:00:25.7]} 31... e3 {[%clk
0:00:42.6]} 32. fxe3 {[%clk 0:00:23.8]} 32... Rxe3 {[%clk 0:00:41.8]} 33. Rxa7
{[%clk 0:00:20.7]} 33... Rf8+ {[%clk 0:00:41.9]} 34. Kg1 {[%clk 0:00:20.9]}
34... Re2 {[%clk 0:00:42.4]} 35. Rxg7 {[%clk 0:00:19.5]} 35... Rxa2 {[%clk
0:00:41.1]} 36. Bd1 {[%clk 0:00:15.4]} 36... Rxa6 {[%clk 0:00:37.7]} 37. Rxh7
{[%clk 0:00:14.9]} 37... Ra3 {[%clk 0:00:35.6]} 38. Bf3 {[%clk 0:00:14.1]} 38...
Rxc3 {[%clk 0:00:34.3]} 39. h4 {[%clk 0:00:14.4]} 39... Rg8 {[%clk 0:00:32.7]}
40. Rh6+ {[%clk 0:00:13.5]} 40... Kc5 {[%clk 0:00:32.1]} 41. Kh2 {[%clk
0:00:14.1]} 41... Rc2 {[%clk 0:00:26.8]} 42. h5 {[%clk 0:00:13.9]} 42... Rf8
{[%clk 0:00:27.4]} 43. Kh3 {[%clk 0:00:13]} 43... Kd4 {[%clk 0:00:24.7]} 44. Rg6
{[%clk 0:00:09.7]} 44... Ke5 {[%clk 0:00:12.5]} 45. h6 {[%clk 0:00:10]} 45... c5
{[%clk 0:00:12.9]} 46. h7 {[%clk 0:00:09.9]} 46... Rh8 {[%clk 0:00:12.6]} 47.
Rg7 {[%clk 0:00:09.9]} 47... Ra2 {[%clk 0:00:09.2]} 48. Re7+ {[%clk 0:00:09.7]}
48... Kf6 {[%clk 0:00:08.1]} 49. Rc7 {[%clk 0:00:10.3]} 49... d4 {[%clk
0:00:06.8]} 50. Rb6+ {[%clk 0:00:08.7]} 50... Ke5 {[%clk 0:00:06.1]} 51. Rg6
{[%clk 0:00:08.6]} 51... Rb2 {[%clk 0:00:02.9]} 52. Rg8 {[%clk 0:00:08.7]} 52...
Rb8 {[%clk 0:00:03.4]} 53. Rxc5+ {[%clk 0:00:07]} 53... Kf4 {[%clk 0:00:03.2]}
54. Rxh8 {[%clk 0:00:05.2]} 54... Rxh8 {[%clk 0:00:03.4]} 55. Rh5 {[%clk
0:00:05.2]} 55... d3 {[%clk 0:00:03.9]} 56. Kh4 {[%clk 0:00:05.2]} 56... d2
{[%clk 0:00:04.2]} 57. Rh6 {[%clk 0:00:05.3]} 57... Kf5 {[%clk 0:00:03.4]} 58.
Kh5 {[%clk 0:00:05.7]} 58... Kf4 {[%clk 0:00:02.9]} 59. Kg6 {[%clk 0:00:03.1]}
59... Ke3 {[%clk 0:00:02.3]} 60. Kg7 {[%clk 0:00:03.4]} 60... Rd8 {[%clk
0:00:01.7]} 61. h8=Q {[%clk 0:00:03.7]} 61... Rxh8 {[%clk 0:00:02.4]} 62. Kxh8
{[%clk 0:00:03.9]} 62... Kf4 {[%clk 0:00:03]} 63. Rd6 {[%clk 0:00:04.3]} 63...
Ke3 {[%clk 0:00:03.7]} 64. Rxd2 {[%clk 0:00:05]} 64... Kxd2 {[%clk 0:00:03.7]}
65. g4 {[%clk 0:00:05.7]} 65... Ke3 {[%clk 0:00:04.5]} 66. g5 {[%clk 0:00:06.4]}
66... Kxf3 {[%clk 0:00:05.4]} 67. g6 {[%clk 0:00:07.1]} 67... Kf4 {[%clk
0:00:06.3]} 68. g7 {[%clk 0:00:07.8]} 68... Kf5 {[%clk 0:00:07.2]} 69. g8=Q
{[%clk 0:00:08.3]} 69... Ke5 {[%clk 0:00:08.1]} 70. Qc4 {[%clk 0:00:08.7]} 70...
Kf5 {[%clk 0:00:08.1]} 71. Kg7 {[%clk 0:00:09.1]} 71... Kg5 {[%clk 0:00:08.4]}
72. Qe4 {[%clk 0:00:08.3]} 72... Kh5 {[%clk 0:00:09]} 73. Kf6 {[%clk 0:00:08.8]}
73... Kh6 {[%clk 0:00:09]} 74. Qh4# {[%clk 0:00:09.5]} 1-0

[Event "*** SCC Grand Prix: Titled Tuesday Blitz"]
[Site "Chess.com"]
[Date "2020.07.14"]
[Round "1"]
[White "volcanoexplorer"]
[Black "RusPakhom"]
[Result "1-0"]
[WhiteElo "2583"]
[BlackElo "2271"]
[TimeControl "180+1"]
[EndTime "10:08:59 PDT"]
[Termination "volcanoexplorer won by resignation"]

1. e4 {[%clk 0:03:00.9]} 1... c5 {[%clk 0:03:00.9]} 2. Nf3 {[%clk 0:03:00.4]}
2... g6 {[%clk 0:02:59.8]} 3. d4 {[%clk 0:03:00.2]} 3... cxd4 {[%clk 0:02:57.9]}
4. Nxd4 {[%clk 0:03:01.1]} 4... Nc6 {[%clk 0:02:57.1]} 5. Be3 {[%clk 0:03:00.1]}
5... Bg7 {[%clk 0:02:56.7]} 6. Nc3 {[%clk 0:03:00]} 6... Nf6 {[%clk 0:02:57]} 7.
Bc4 {[%clk 0:02:58.8]} 7... O-O {[%clk 0:02:56.7]} 8. Bb3 {[%clk 0:02:58.7]}
8... Ng4 {[%clk 0:02:56.5]} 9. Qxg4 {[%clk 0:01:37.6]} 9... Nxd4 {[%clk
0:02:55.8]} 10. O-O {[%clk 0:01:28.4]} 10... d6 {[%clk 0:02:36.5]} 11. Qd1
{[%clk 0:01:26.3]} 11... Nxb3 {[%clk 0:02:36.2]} 12. axb3 {[%clk 0:01:27.2]}
12... a6 {[%clk 0:02:34.6]} 13. Qd3 {[%clk 0:01:27.4]} 13... b5 {[%clk 0:02:34]}
14. Bd4 {[%clk 0:01:21.7]} 14... Bb7 {[%clk 0:02:32.3]} 15. Bxg7 {[%clk
0:01:18.4]} 15... Kxg7 {[%clk 0:02:33.2]} 16. Qd4+ {[%clk 0:01:17.5]} 16... Kg8
{[%clk 0:02:32.7]} 17. Rfd1 {[%clk 0:01:11.5]} 17... Rc8 {[%clk 0:02:30.3]} 18.
Rd2 {[%clk 0:01:11.6]} 18... Qc7 {[%clk 0:02:13.9]} 19. Rad1 {[%clk 0:01:10.9]}
19... Qc5 {[%clk 0:02:13.5]} 20. b4 {[%clk 0:01:04.4]} 20... Qxd4 {[%clk
0:02:10.4]} 21. Rxd4 {[%clk 0:01:05.3]} 21... Rc7 {[%clk 0:02:08.1]} 22. f4
{[%clk 0:00:48.9]} 22... Rfc8 {[%clk 0:02:07.7]} 23. Kf2 {[%clk 0:00:40.4]}
23... Kg7 {[%clk 0:02:07.2]} 24. e5 {[%clk 0:00:38.5]} 24... dxe5 {[%clk
0:02:06.1]} 25. fxe5 {[%clk 0:00:39.4]} 25... Rc4 {[%clk 0:01:55.9]} 26. Rd7
{[%clk 0:00:20]} 26... Bc6 {[%clk 0:01:55.4]} 27. R7d4 {[%clk 0:00:12.7]} 27...
Rxd4 {[%clk 0:01:47.1]} 28. Rxd4 {[%clk 0:00:13.6]} 28... Rc7 {[%clk 0:01:47.3]}
29. g3 {[%clk 0:00:13.6]} 29... f6 {[%clk 0:01:40.3]} 30. exf6+ {[%clk
0:00:12.1]} 30... Kxf6 {[%clk 0:01:40.7]} 31. Ke3 {[%clk 0:00:12.4]} 31... e5
{[%clk 0:01:41]} 32. Rd8 {[%clk 0:00:11.5]} 32... Bb7 {[%clk 0:01:32]} 33. h4
{[%clk 0:00:05.3]} 33... h5 {[%clk 0:01:31.2]} 34. Rd6+ {[%clk 0:00:05.1]} 34...
Kf5 {[%clk 0:01:30.4]} 35. Rb6 {[%clk 0:00:04.1]} 35... g5 {[%clk 0:01:16.5]}
36. hxg5 {[%clk 0:00:03.9]} 36... Kxg5 {[%clk 0:01:17.4]} 37. Ne2 {[%clk
0:00:03.7]} 37... Bc8 {[%clk 0:01:11.1]} 38. c3 {[%clk 0:00:03.8]} 38... Rf7
{[%clk 0:01:02.9]} 39. Ng1 {[%clk 0:00:02.4]} 39... Bb7 {[%clk 0:01:00.8]} 40.
Re6 {[%clk 0:00:01.8]} 40... Kg4 {[%clk 0:01:00.1]} 41. Re8 {[%clk 0:00:02.1]}
41... Kxg3 {[%clk 0:00:58.1]} 42. Rxe5 {[%clk 0:00:02.5]} 42... h4 {[%clk
0:00:54.8]} 43. Rg5+ {[%clk 0:00:03]} 43... Kh2 {[%clk 0:00:53.6]} 44. Ne2
{[%clk 0:00:03.7]} 44... Rf3+ {[%clk 0:00:51.1]} 45. Kd2 {[%clk 0:00:03.4]}
45... h3 {[%clk 0:00:47.5]} 46. Ke1 {[%clk 0:00:03.9]} 46... Rd3 {[%clk
0:00:43.4]} 47. Rg7 {[%clk 0:00:04.4]} 47... Bf3 {[%clk 0:00:42]} 48. Nf4 {[%clk
0:00:03.9]} 48... Rd1+ {[%clk 0:00:36.4]} 49. Kf2 {[%clk 0:00:04.6]} 49... Be4
{[%clk 0:00:31.8]} 50. Rh7 {[%clk 0:00:05.1]} 50... Rd2+ {[%clk 0:00:29]} 51.
Ke3 {[%clk 0:00:05.4]} 51... Rxb2 {[%clk 0:00:25.9]} 52. Rxh3+ {[%clk
0:00:05.4]} 52... Kg1 {[%clk 0:00:25.3]} 53. Kxe4 {[%clk 0:00:05.9]} 53... Ra2
{[%clk 0:00:22.5]} 54. Rd3 {[%clk 0:00:05.8]} 54... a5 {[%clk 0:00:22.1]} 55.
bxa5 {[%clk 0:00:05.8]} 55... Rxa5 {[%clk 0:00:23]} 56. Nd5 {[%clk 0:00:06.5]}
56... Ra4+ {[%clk 0:00:22.1]} 57. Nb4 {[%clk 0:00:06.8]} 57... Kf2 {[%clk
0:00:21]} 58. Kd5 {[%clk 0:00:07]} 58... Ke2 {[%clk 0:00:21.2]} 59. Kc5 {[%clk
0:00:07.4]} 59... Ra8 {[%clk 0:00:18.9]} 60. Kxb5 {[%clk 0:00:07.5]} 60... Rb8+
{[%clk 0:00:19.3]} 61. Kc4 {[%clk 0:00:07.9]} 61... Rc8+ {[%clk 0:00:19.5]} 62.
Kb3 {[%clk 0:00:08.4]} 62... Rb8 {[%clk 0:00:19.4]} 63. Rd7 {[%clk 0:00:08.6]}
63... Ke3 {[%clk 0:00:19.2]} 64. c4 {[%clk 0:00:08.7]} 64... Ke4 {[%clk
0:00:19.6]} 65. c5 {[%clk 0:00:08.4]} 65... Ke5 {[%clk 0:00:20.5]} 66. Kc4
{[%clk 0:00:08.8]} 66... Ke6 {[%clk 0:00:21.4]} 67. Rd1 {[%clk 0:00:09.3]} 67...
Rc8 {[%clk 0:00:21.6]} 68. c6 {[%clk 0:00:07.7]} 68... Rh8 {[%clk 0:00:21.4]}
69. Kc5 {[%clk 0:00:07.7]} 69... Rh5+ {[%clk 0:00:21]} 70. Kb6 {[%clk
0:00:08.1]} 70... Rh4 {[%clk 0:00:21.4]} 71. Re1+ {[%clk 0:00:07.7]} 71... Kd6
{[%clk 0:00:20.1]} 72. Rd1+ {[%clk 0:00:07.6]} 72... Ke7 {[%clk 0:00:20.4]} 73.
Na6 {[%clk 0:00:08.1]} 73... Rh8 {[%clk 0:00:18.4]} 74. c7 {[%clk 0:00:08]}
74... Rc8 {[%clk 0:00:18.5]} 75. Kb7 {[%clk 0:00:08.5]} 1-0